fUSD/lending_fUSD_20260612
["ID","MTS","AMOUNT","RATE_DAILY","PERIOD"]
[424845328,1781201442000,-568.25,0.00013698,2]
[424845325,1781201442000,-685.51,0.00013698,2]
[424845317,1781201442000,-685.51,0.00013698,2]
[424845329,1781201442000,-568.25,0.00013698,2]
[424845339,1781201442000,-500.0,0.00013698,2]
[424845334,1781201442000,-568.25,0.00013698,2]
[424845381,1781201442000,-500.0,0.00013698,2]
[424845378,1781201442000,-500.0,0.00013698,2]
[424845383,1781201442000,-500.0,0.00013698,2]
[424845414,1781201442000,-500.0,0.00013698,2]
[424845413,1781201442000,-500.0,0.00013698,2]
[424845416,1781201442000,-500.0,0.00013698,2]
[424845417,1781201442000,-500.0,0.00013698,2]
[424845415,1781201442000,-500.0,0.00013698,2]
[424845419,1781201442000,-500.0,0.00013698,2]
[424845429,1781201442000,-500.0,0.00013698,2]
[424845420,1781201442000,-500.0,0.00013698,2]
[424845424,1781201442000,-500.0,0.00013698,2]
[424845422,1781201442000,-500.0,0.00013698,2]
[424845421,1781201442000,-500.0,0.00013698,2]
[424845426,1781201442000,-500.0,0.00013698,2]
[424845423,1781201442000,-500.0,0.00013698,2]
[424845427,1781201442000,-500.0,0.00013698,2]
[424845425,1781201442000,-500.0,0.00013698,2]
[424845428,1781201442000,-500.0,0.00013698,2]
[424845431,1781201442000,-500.0,0.00013698,2]
[424845432,1781201442000,-500.0,0.00013698,2]
[424845430,1781201442000,-500.0,0.00013698,2]
[424845433,1781201442000,-500.0,0.00013698,2]
[424845434,1781201442000,-500.0,0.00013698,2]
[424845437,1781201442000,-500.0,0.00013698,2]
[424845436,1781201442000,-500.0,0.00013698,2]
[424845435,1781201442000,-500.0,0.00013698,2]
[424845382,1781201442000,-500.0,0.00013698,2]
[424845412,1781201442000,-500.0,0.00013698,2]
[424845411,1781201442000,-249.71012285,0.00013698,2]
[424845418,1781201442000,-500.0,0.00013698,2]
[424845410,1781201442000,-500.0,0.00013698,2]
[424845407,1781201442000,-500.0,0.00013698,2]
[424845384,1781201442000,-500.0,0.00013698,2]
[424845393,1781201442000,-566.65,0.00013698,2]
[424845386,1781201442000,-500.0,0.00013698,2]
[424845388,1781201442000,-500.0,0.00013698,2]
[424845389,1781201442000,-500.0,0.00013698,2]
[424845387,1781201442000,-500.0,0.00013698,2]
[424845391,1781201442000,-500.0,0.00013698,2]
[424845392,1781201442000,-500.0,0.00013698,2]
[424845394,1781201442000,-2156.8,0.00013698,2]
[424845390,1781201442000,-500.0,0.00013698,2]
[424845395,1781201442000,-2156.8,0.00013698,2]
[424845396,1781201442000,-2156.8,0.00013698,2]
[424845385,1781201442000,-500.0,0.00013698,2]
[424845399,1781201442000,-2156.8,0.00013698,2]
[424845397,1781201442000,-2156.8,0.00013698,2]
[424845408,1781201442000,-500.0,0.00013698,2]
[424845402,1781201442000,-2156.8,0.00013698,2]
[424845403,1781201442000,-2156.8,0.00013698,2]
[424845401,1781201442000,-2156.8,0.00013698,2]
[424845409,1781201442000,-500.0,0.00013698,2]
[424845405,1781201442000,-2156.8,0.00013698,2]
[424845404,1781201442000,-2156.8,0.00013698,2]
[424845398,1781201442000,-2156.8,0.00013698,2]
[424845400,1781201442000,-2156.8,0.00013698,2]
[424845406,1781201442000,-2156.8,0.00013698,2]
[424845476,1781201443000,-578.59,0.00013698,2]
[424845475,1781201443000,-578.59,0.00013698,2]
[424845471,1781201443000,-578.59,0.00013698,2]
[424845467,1781201443000,-578.59,0.00013698,2]
[424845473,1781201443000,-578.59,0.00013698,2]
[424845469,1781201443000,-578.59,0.00013698,2]
[424845470,1781201443000,-578.59,0.00013698,2]
[424845468,1781201443000,-578.59,0.00013698,2]
[424845466,1781201443000,-578.59,0.00013698,2]
[424845480,1781201443000,-500.0,0.00013698,2]
[424845472,1781201443000,-578.59,0.00013698,2]
[424845478,1781201443000,-500.0,0.00013698,2]
[424845488,1781201443000,-500.0,0.00013698,2]
[424845477,1781201443000,-578.59,0.00013698,2]
[424845487,1781201443000,-500.0,0.00013698,2]
[424845485,1781201443000,-500.0,0.00013698,2]
[424845483,1781201443000,-500.0,0.00013698,2]
[424845481,1781201443000,-500.0,0.00013698,2]
[424845484,1781201443000,-500.0,0.00013698,2]
[424845489,1781201443000,-500.0,0.00013698,2]
[424845490,1781201443000,-500.0,0.00013698,2]
[424845492,1781201443000,-500.0,0.00013698,2]
[424845496,1781201443000,-500.0,0.00013698,2]
[424845465,1781201443000,-578.59,0.00013698,2]
[424845486,1781201443000,-500.0,0.00013698,2]
[424845463,1781201443000,-578.59,0.00013698,2]
[424845491,1781201443000,-500.0,0.00013698,2]
[424845474,1781201443000,-578.59,0.00013698,2]
[424845441,1781201443000,-500.0,0.00013698,2]
[424845440,1781201443000,-500.0,0.00013698,2]
[424845439,1781201443000,-500.0,0.00013698,2]
[424845438,1781201443000,-500.0,0.00013698,2]
[424845442,1781201443000,-500.0,0.00013698,2]
[424845444,1781201443000,-500.0,0.00013698,2]
[424845446,1781201443000,-500.0,0.00013698,2]
[424845450,1781201443000,-500.0,0.00013698,2]
[424845449,1781201443000,-500.0,0.00013698,2]
[424845443,1781201443000,-500.0,0.00013698,2]
[424845448,1781201443000,-500.0,0.00013698,2]
[424845445,1781201443000,-500.0,0.00013698,2]
[424845447,1781201443000,-500.0,0.00013698,2]
[424845451,1781201443000,-500.0,0.00013698,2]
[424845452,1781201443000,-500.0,0.00013698,2]
[424845454,1781201443000,-500.0,0.00013698,2]
[424845456,1781201443000,-500.0,0.00013698,2]
[424845455,1781201443000,-500.0,0.00013698,2]
[424845453,1781201443000,-500.0,0.00013698,2]
[424845460,1781201443000,-321.97837495,0.00013698,2]
[424845459,1781201443000,-500.0,0.00013698,2]
[424845462,1781201443000,-578.59,0.00013698,2]
[424845461,1781201443000,-578.59,0.00013698,2]
[424845458,1781201443000,-500.0,0.00013698,2]
[424845457,1781201443000,-500.0,0.00013698,2]
[424845464,1781201443000,-578.59,0.00013698,2]
[424845494,1781201443000,-500.0,0.00013698,2]
[424845510,1781201443000,-500.0,0.00013698,2]
[424845493,1781201443000,-500.0,0.00013698,2]
[424845526,1781201443000,-500.0,0.00013698,2]
[424845527,1781201443000,-200.0,0.00013699,2]
[424845523,1781201443000,-500.0,0.00013698,2]
[424845528,1781201443000,-594.1,0.000137,2]
[424845531,1781201443000,-150.0,0.00013987,2]
[424845529,1781201443000,-150.0,0.00013821,2]
[424845530,1781201443000,-656.73650677,0.00013982,2]
[424845532,1781201443000,-310.0,0.00014137,2]
[424845535,1781201443000,-221.45,0.0001431,2]
[424845534,1781201443000,-656.73650677,0.00014288,2]
[424845537,1781201443000,-284.68,0.00014372,2]
[424845533,1781201443000,-150.0,0.00014154,2]
[424845539,1781201443000,-656.73650677,0.00014594,2]
[424845538,1781201443000,-150.0,0.00014487,2]
[424845540,1781201443000,-150.0,0.00014653,2]
[424845543,1781201443000,-208.069832,0.000147,2]
[424845544,1781201443000,-212.990003,0.000147,2]
[424845541,1781201443000,-700.0,0.000147,5]
[424845542,1781201443000,-212.990003,0.000147,2]
[424845545,1781201443000,-160.0,0.000147,2]
[424845547,1781201443000,-326.962806,0.000147,2]
[424845546,1781201443000,-243.481403,0.000147,2]
[424845550,1781201443000,-700.0,0.000148,5]
[424845497,1781201443000,-500.0,0.00013698,2]
[424845536,1781201443000,-150.0,0.0001432,2]
[424845525,1781201443000,-500.0,0.00013698,2]
[424845548,1781201443000,-163.916447,0.000147,2]
[424845520,1781201443000,-500.0,0.00013698,2]
[424845524,1781201443000,-500.0,0.00013698,2]
[424845495,1781201443000,-500.0,0.00013698,2]
[424845500,1781201443000,-500.0,0.00013698,2]
[424845499,1781201443000,-500.0,0.00013698,2]
[424845501,1781201443000,-500.0,0.00013698,2]
[424845503,1781201443000,-500.0,0.00013698,2]
[424845502,1781201443000,-500.0,0.00013698,2]
[424845507,1781201443000,-500.0,0.00013698,2]
[424845549,1781201443000,-294.684958,0.000147,2]
[424845505,1781201443000,-348.71008799,0.00013698,2]
[424845506,1781201443000,-500.0,0.00013698,2]
[424845509,1781201443000,-500.0,0.00013698,2]
[424845498,1781201443000,-500.0,0.00013698,2]
[424845504,1781201443000,-500.0,0.00013698,2]
[424845511,1781201443000,-500.0,0.00013698,2]
[424845515,1781201443000,-500.0,0.00013698,2]
[424845521,1781201443000,-500.0,0.00013698,2]
[424845517,1781201443000,-500.0,0.00013698,2]
[424845514,1781201443000,-500.0,0.00013698,2]
[424845522,1781201443000,-500.0,0.00013698,2]
[424845518,1781201443000,-500.0,0.00013698,2]
[424845512,1781201443000,-500.0,0.00013698,2]
[424845513,1781201443000,-500.0,0.00013698,2]
[424845508,1781201443000,-500.0,0.00013698,2]
[424845519,1781201443000,-457.12873569,0.00013698,2]
[424845516,1781201443000,-500.0,0.00013698,2]
[424845573,1781201444000,-685.51,0.00014999,2]
[424845574,1781201444000,-685.51,0.00014999,2]
[424845589,1781201444000,-578.59,0.00014999,2]
[424845576,1781201444000,-685.51,0.00014999,2]
[424845579,1781201444000,-568.25,0.00014999,2]
[424845580,1781201444000,-568.25,0.00014999,2]
[424845585,1781201444000,-568.4,0.00014999,2]
[424845581,1781201444000,-568.25,0.00014999,2]
[424845586,1781201444000,-500.0,0.00014999,2]
[424845583,1781201444000,-568.25,0.00014999,2]
[424845599,1781201444000,-500.0,0.00014999,2]
[424845588,1781201444000,-357.34141108,0.00014999,2]
[424845584,1781201444000,-568.25,0.00014999,2]
[424845591,1781201444000,-578.59,0.00014999,2]
[424845598,1781201444000,-500.0,0.00014999,2]
[424845600,1781201444000,-500.0,0.00014999,2]
[424845592,1781201444000,-578.59,0.00014999,2]
[424845593,1781201444000,-578.59,0.00014999,2]
[424845590,1781201444000,-578.59,0.00014999,2]
[424845570,1781201444000,-532.38,0.00014999,2]
[424845601,1781201444000,-500.0,0.00014999,2]
[424845582,1781201444000,-568.25,0.00014999,2]
[424845578,1781201444000,-685.51626089,0.00014999,2]
[424845567,1781201444000,-532.38,0.00014999,2]
[424845571,1781201444000,-532.46,0.00014999,2]
[424845596,1781201444000,-2000.0,0.00014999,2]
[424845551,1781201444000,-150.0,0.0001482,2]
[424845553,1781201444000,-322.366352,0.00014847,2]
[424845554,1781201444000,-25000.0,0.00014891,3]
[424845555,1781201444000,-443.09253188,0.000149,2]
[424845552,1781201444000,-211.298543,0.00014847,2]
[424845556,1781201444000,-19201.05599919,0.000149,3]
[424845557,1781201444000,-25000.0,0.000149,3]
[424845558,1781201444000,-700.0,0.000149,5]
[424845559,1781201444000,-710.83093333,0.000149,2]
[424845564,1781201444000,-500.0,0.00014998,2]
[424845565,1781201444000,-532.38,0.00014999,2]
[424845563,1781201444000,-150.0,0.00014986,2]
[424845562,1781201444000,-279.86118902,0.00014986,2]
[424845561,1781201444000,-656.73650677,0.000149,2]
[424845560,1781201444000,-238.36873009,0.000149,2]
[424845566,1781201444000,-532.38,0.00014999,2]
[424845569,1781201444000,-532.38,0.00014999,2]
[424845568,1781201444000,-532.38,0.00014999,2]
[424845572,1781201444000,-685.51,0.00014999,2]
[424845575,1781201444000,-685.51,0.00014999,2]
[424845577,1781201444000,-685.51,0.00014999,2]
[424845597,1781201444000,-500.0,0.00014999,2]
[424845587,1781201444000,-500.0,0.00014999,2]
[424845594,1781201444000,-578.59,0.00014999,2]
[424845623,1781201444000,-500.0,0.00014999,2]
[424845626,1781201444000,-500.0,0.00014999,2]
[424845629,1781201444000,-500.0,0.00014999,2]
[424845627,1781201444000,-500.0,0.00014999,2]
[424845628,1781201444000,-500.0,0.00014999,2]
[424845633,1781201444000,-500.0,0.00014999,2]
[424845595,1781201444000,-578.59379386,0.00014999,2]
[424845635,1781201444000,-500.0,0.00014999,2]
[424845643,1781201444000,-500.0,0.00014999,2]
[424845634,1781201444000,-500.0,0.00014999,2]
[424845636,1781201444000,-500.0,0.00014999,2]
[424845637,1781201444000,-500.0,0.00014999,2]
[424845642,1781201444000,-500.0,0.00014999,2]
[424845640,1781201444000,-500.0,0.00014999,2]
[424845639,1781201444000,-500.0,0.00014999,2]
[424845638,1781201444000,-500.0,0.00014999,2]
[424845641,1781201444000,-500.0,0.00014999,2]
[424845645,1781201444000,-500.0,0.00014999,2]
[424845646,1781201444000,-500.0,0.00014999,2]
[424845647,1781201444000,-500.0,0.00014999,2]
[424845644,1781201444000,-500.0,0.00014999,2]
[424845624,1781201444000,-500.0,0.00014999,2]
[424845625,1781201444000,-500.0,0.00014999,2]
[424845630,1781201444000,-500.0,0.00014999,2]
[424845631,1781201444000,-500.0,0.00014999,2]
[424845608,1781201444000,-500.0,0.00014999,2]
[424845602,1781201444000,-500.0,0.00014999,2]
[424845632,1781201444000,-500.0,0.00014999,2]
[424845605,1781201444000,-500.0,0.00014999,2]
[424845611,1781201444000,-500.0,0.00014999,2]
[424845607,1781201444000,-500.0,0.00014999,2]
[424845604,1781201444000,-500.0,0.00014999,2]
[424845613,1781201444000,-500.0,0.00014999,2]
[424845610,1781201444000,-500.0,0.00014999,2]
[424845606,1781201444000,-500.0,0.00014999,2]
[424845609,1781201444000,-500.0,0.00014999,2]
[424845603,1781201444000,-500.0,0.00014999,2]
[424845648,1781201444000,-500.0,0.00014999,2]
[424845612,1781201444000,-500.0,0.00014999,2]
[424845622,1781201444000,-500.0,0.00014999,2]
[424845617,1781201444000,-500.0,0.00014999,2]
[424845619,1781201444000,-500.0,0.00014999,2]
[424845616,1781201444000,-500.0,0.00014999,2]
[424845621,1781201444000,-500.0,0.00014999,2]
[424845618,1781201444000,-500.0,0.00014999,2]
[424845615,1781201444000,-500.0,0.00014999,2]
[424845614,1781201444000,-500.0,0.00014999,2]
[424845620,1781201444000,-500.0,0.00014999,2]
[424845664,1781201445000,-500.0,0.00014999,2]
[424845666,1781201445000,-500.0,0.00014999,2]
[424845659,1781201445000,-500.0,0.00014999,2]
[424845663,1781201445000,-500.0,0.00014999,2]
[424845662,1781201445000,-500.0,0.00014999,2]
[424845660,1781201445000,-500.0,0.00014999,2]
[424845655,1781201445000,-500.0,0.00014999,2]
[424845661,1781201445000,-500.0,0.00014999,2]
[424845652,1781201445000,-500.0,0.00014999,2]
[424845656,1781201445000,-500.0,0.00014999,2]
[424845657,1781201445000,-500.0,0.00014999,2]
[424845654,1781201445000,-500.0,0.00014999,2]
[424845653,1781201445000,-500.0,0.00014999,2]
[424845650,1781201445000,-500.0,0.00014999,2]
[424845651,1781201445000,-500.0,0.00014999,2]
[424845649,1781201445000,-500.0,0.00014999,2]
[424845658,1781201445000,-500.0,0.00014999,2]
[424845665,1781201445000,-500.0,0.00014999,2]
[424845667,1781201445000,-500.0,0.00014999,2]
[424845669,1781201445000,-500.0,0.00014999,2]
[424845676,1781201445000,-500.0,0.00014999,2]
[424845684,1781201445000,-5160934.19418106,0.00015,2]
[424845685,1781201445000,-1273462.18729007,0.00015,2]
[424845681,1781201445000,-300.0,0.00014999,2]
[424845678,1781201445000,-500.0,0.00014999,2]
[424845679,1781201445000,-300.0,0.00014999,2]
[424845680,1781201445000,-666.0,0.00014999,2]
[424845683,1781201445000,-666.0,0.00014999,2]
[424845682,1781201445000,-300.0,0.00014999,2]
[424845671,1781201445000,-500.0,0.00014999,2]
[424845670,1781201445000,-500.0,0.00014999,2]
[424845673,1781201445000,-500.0,0.00014999,2]
[424845674,1781201445000,-500.0,0.00014999,2]
[424845672,1781201445000,-500.0,0.00014999,2]
[424845675,1781201445000,-500.0,0.00014999,2]
[424845668,1781201445000,-500.0,0.00014999,2]
[424845677,1781201445000,-500.0,0.00014999,2]
[424845698,1781201446000,-85620.4600324,0.00015,2]
[424845692,1781201446000,-5418.83134,0.00015,2]
[424845691,1781201446000,-1407.35608881,0.00015,2]
[424845694,1781201446000,-1161.80504802,0.00015,2]
[424845696,1781201446000,-278.1697105,0.00015,2]
[424845697,1781201446000,-3029.48273564,0.00015,2]
[424845699,1781201446000,-2367.40471813,0.00015,2]
[424845693,1781201446000,-916.55417878,0.00015,2]
[424845701,1781201446000,-151.0,0.00012738,2]
[424845702,1781201446000,-1755.09114264,0.00013371,2]
[424845703,1781201446000,-3273.01246559,0.00015,2]
[424845704,1781201446000,-300.0,0.00015,2]
[424845706,1781201446000,-17641.1166578,0.00015,2]
[424845705,1781201446000,-2347.35,0.00015,2]
[424845707,1781201446000,-511.61144025,0.00015,2]
[424845700,1781201446000,-768.78322474,0.00015,2]
[424845708,1781201955000,-150.0,0.00010476,2]
[424845712,1781202028000,352.66379041,0.00010468,2]
[424845711,1781202028000,573.98620959,0.00010468,2]
[424845713,1781202134000,557.60376252,0.00010458,2]
[424845714,1781202134000,152.08943177,0.00010458,2]
[424845717,1781202134000,72.62541402,0.00010458,2]
[424845716,1781202134000,231.78198869,0.00010458,2]
[424845715,1781202134000,593.759403,0.00010458,2]
[424845718,1781202155000,152.0,8.997e-05,7]
[424845720,1781202541000,173.48815829,0.00010235,2]
[424845729,1781202631000,-1486.12,0.0001056,2]
[424845743,1781202631000,-356.50026667,0.000108,2]
[424845737,1781202631000,-150.0,0.00010649,2]
[424845739,1781202631000,-150.0,0.00010751,2]
[424845735,1781202631000,-672.09,0.00010639,2]
[424845738,1781202631000,-151.38,0.00010681,2]
[424845732,1781202631000,-1000.0,0.00010638,2]
[424845733,1781202631000,-7917.60778107,0.00010639,2]
[424845731,1781202631000,-300.0,0.00010638,2]
[424845721,1781202631000,-200.0,0.00010231,2]
[424845730,1781202631000,-150.0,0.0001057,2]
[424845736,1781202631000,-23152.60991587,0.00010639,2]
[424845727,1781202631000,-150.0,0.00010444,2]
[424845726,1781202631000,-306.23830523,0.00010435,2]
[424845724,1781202631000,-61.08709862,0.00010235,2]
[424845723,1781202631000,-370.01474309,0.00010235,2]
[424845725,1781202631000,-150.0,0.00010341,2]
[424845722,1781202631000,-250.0,0.00010233,2]
[424845734,1781202631000,-8496.38230306,0.00010639,2]
[424845745,1781202631000,-650.82,0.0001085,2]
[424845728,1781202631000,-150.0,0.00010546,2]
[424845742,1781202631000,-150.0,0.00010799,2]
[424845744,1781202631000,-5530.0,0.000108,2]
[424845769,1781202631000,-350.89276297,0.000114,5]
[424845767,1781202631000,-166.66,0.00011397,2]
[424845764,1781202631000,-166.66,0.00011288,2]
[424845761,1781202631000,-150.0,0.00011257,2]
[424845759,1781202631000,-250.0,0.00011254,2]
[424845754,1781202631000,-5530.0,0.000111,3]
[424845756,1781202631000,-436.74569696,0.00011201,2]
[424845752,1781202631000,-166.66,0.00011068,2]
[424845755,1781202631000,-166.66,0.00011178,2]
[424845751,1781202631000,-195.0,0.00011058,2]
[424845753,1781202631000,-166.66,0.00011073,2]
[424845750,1781202631000,-287.5956713,0.00011014,2]
[424845758,1781202631000,-300.0,0.00011254,2]
[424845746,1781202631000,-150.0,0.00010853,2]
[424845748,1781202631000,-3201.28,0.00010959,2]
[424845747,1781202631000,-150.0,0.00010956,2]
[424845740,1781202631000,-5575.72,0.00010753,2]
[424845741,1781202631000,-419.36,0.00010754,2]
[424845749,1781202631000,-166.66,0.00010959,2]
[424845770,1781202632000,-2060.33272966,0.000114,5]
[424845771,1781202632000,-3118.77450737,0.000114,5]
[424845772,1781202632000,-1755.61023458,0.000115,4]
[424845773,1781202632000,-1044.38976542,0.000115,4]
[424845776,1781202632000,-1117.69894956,0.00011598,2]
[424845775,1781202632000,-486.28776118,0.00011598,2]
[424845777,1781202632000,-1902.77915204,0.00011598,2]
[424845774,1781202632000,-166.66,0.00011507,2]
[424845796,1781202633000,-183.08077087,0.00011797,2]
[424845797,1781202633000,-784.48316918,0.00011797,2]
[424845800,1781202633000,-784.48316918,0.00011797,2]
[424845799,1781202633000,-784.48316918,0.00011797,2]
[424845802,1781202633000,-784.48316918,0.00011797,2]
[424845803,1781202633000,-784.48316918,0.00011797,2]
[424845805,1781202633000,-784.48316918,0.00011797,2]
[424845804,1781202633000,-784.48316918,0.00011797,2]
[424845809,1781202633000,-784.48316918,0.00011797,2]
[424845810,1781202633000,-784.48316918,0.00011797,2]
[424845807,1781202633000,-784.48316918,0.00011797,2]
[424845811,1781202633000,-784.48316918,0.00011797,2]
[424845806,1781202633000,-784.48316918,0.00011797,2]
[424845814,1781202633000,-784.48316918,0.00011797,2]
[424845812,1781202633000,-784.48316918,0.00011797,2]
[424845813,1781202633000,-784.48316918,0.00011797,2]
[424845808,1781202633000,-784.48316918,0.00011797,2]
[424845801,1781202633000,-784.48316918,0.00011797,2]
[424845780,1781202633000,-116.32227433,0.000116,4]
[424845795,1781202633000,-784.48316918,0.00011797,2]
[424845778,1781202633000,-393.51233074,0.00011598,2]
[424845781,1781202633000,-607.56498033,0.000116,4]
[424845779,1781202633000,-275.55772567,0.00011598,2]
[424845782,1781202633000,-4976.11274534,0.000116,4]
[424845815,1781202633000,-784.48316918,0.00011797,2]
[424845783,1781202633000,-420.0,0.00011694,2]
[424845784,1781202633000,-4180.8023,0.00011697,2]
[424845798,1781202633000,-784.48316918,0.00011797,2]
[424845786,1781202633000,-250.0,0.00011697,2]
[424845788,1781202633000,-2415.13667419,0.00011698,2]
[424845787,1781202633000,-18137.86593271,0.00011698,2]
[424845790,1781202633000,-8600.0,0.000117,4]
[424845789,1781202633000,-7491.28135104,0.00011698,2]
[424845791,1781202633000,-784.48316918,0.00011797,2]
[424845793,1781202633000,-397.97871834,0.00011797,2]
[424845792,1781202633000,-500.0,0.00011797,2]
[424845785,1781202633000,-6821.7941,0.00011697,2]
[424845817,1781202633000,-784.48316918,0.00011797,2]
[424845794,1781202633000,-784.48316918,0.00011797,2]
[424845818,1781202633000,-784.48316918,0.00011797,2]
[424845842,1781202633000,-784.48316918,0.00011797,2]
[424845841,1781202633000,-784.48316918,0.00011797,2]
[424845843,1781202633000,-784.48316918,0.00011797,2]
[424845840,1781202633000,-784.48316918,0.00011797,2]
[424845839,1781202633000,-784.48316918,0.00011797,2]
[424845845,1781202633000,-4746.71747896,0.00011797,2]
[424845844,1781202633000,-784.48316918,0.00011797,2]
[424845848,1781202633000,-4746.71747896,0.00011797,2]
[424845849,1781202633000,-4746.71747896,0.00011797,2]
[424845847,1781202633000,-4746.71747896,0.00011797,2]
[424845850,1781202633000,-4746.71747896,0.00011797,2]
[424845851,1781202633000,-4746.71747896,0.00011797,2]
[424845852,1781202633000,-320.1372895,0.00011797,2]
[424845853,1781202633000,-4426.58018946,0.00011797,2]
[424845855,1781202633000,-1147.72947093,0.00011797,2]
[424845856,1781202633000,-1254.41808677,0.00011797,2]
[424845816,1781202633000,-784.48316918,0.00011797,2]
[424845837,1781202633000,-784.48316918,0.00011797,2]
[424845836,1781202633000,-784.48316918,0.00011797,2]
[424845838,1781202633000,-784.48316918,0.00011797,2]
[424845846,1781202633000,-4746.71747896,0.00011797,2]
[424845819,1781202633000,-784.48316918,0.00011797,2]
[424845820,1781202633000,-784.48316918,0.00011797,2]
[424845823,1781202633000,-784.48316918,0.00011797,2]
[424845824,1781202633000,-784.48316918,0.00011797,2]
[424845854,1781202633000,-4746.71747896,0.00011797,2]
[424845822,1781202633000,-784.48316918,0.00011797,2]
[424845825,1781202633000,-784.48316918,0.00011797,2]
[424845827,1781202633000,-784.48316918,0.00011797,2]
[424845828,1781202633000,-784.48316918,0.00011797,2]
[424845821,1781202633000,-784.48316918,0.00011797,2]
[424845830,1781202633000,-784.48316918,0.00011797,2]
[424845831,1781202633000,-784.48316918,0.00011797,2]
[424845834,1781202633000,-784.48316918,0.00011797,2]
[424845832,1781202633000,-784.48316918,0.00011797,2]
[424845826,1781202633000,-784.48316918,0.00011797,2]
[424845833,1781202633000,-784.48316918,0.00011797,2]
[424845829,1781202633000,-784.48316918,0.00011797,2]
[424845835,1781202633000,-784.48316918,0.00011797,2]
[424845877,1781202637000,-4746.71747896,0.00011797,2]
[424845867,1781202637000,-4746.71747896,0.00011797,2]
[424845866,1781202637000,-4746.71747896,0.00011797,2]
[424845862,1781202637000,-2040.56992126,0.00011797,2]
[424845865,1781202637000,-4746.71747896,0.00011797,2]
[424845863,1781202637000,-4746.71747896,0.00011797,2]
[424845860,1781202637000,-304.0,0.00011797,2]
[424845869,1781202637000,-4746.71747896,0.00011797,2]
[424845864,1781202637000,-4746.71747896,0.00011797,2]
[424845868,1781202637000,-4746.71747896,0.00011797,2]
[424845878,1781202637000,-4746.71747896,0.00011797,2]
[424845872,1781202637000,-4746.71747896,0.00011797,2]
[424845870,1781202637000,-4746.71747896,0.00011797,2]
[424845882,1781202637000,-4746.71747894,0.00011797,2]
[424845881,1781202637000,-4746.71747894,0.00011797,2]
[424845883,1781202637000,-4746.71747894,0.00011797,2]
[424845879,1781202637000,-4746.71747896,0.00011797,2]
[424845880,1781202637000,-4746.71747894,0.00011797,2]
[424845871,1781202637000,-4746.71747896,0.00011797,2]
[424845876,1781202637000,-4746.71747896,0.00011797,2]
[424845875,1781202637000,-4746.71747896,0.00011797,2]
[424845874,1781202637000,-4746.71747896,0.00011797,2]
[424845873,1781202637000,-4746.71747896,0.00011797,2]
[424845915,1781202638000,-1067.36162374,0.00012,3]
[424845907,1781202638000,-1012.89519473,0.00012,3]
[424845922,1781202638000,-500.0,0.00012,2]
[424845917,1781202638000,-150.0,0.00012,2]
[424845909,1781202638000,-1061.72415038,0.00012,3]
[424845913,1781202638000,-1067.36162374,0.00012,3]
[424845919,1781202638000,-500.0,0.00012,2]
[424845910,1781202638000,-1061.72415038,0.00012,3]
[424845935,1781202638000,-500.0,0.00012,2]
[424845937,1781202638000,-500.0,0.00012,2]
[424845924,1781202638000,-500.0,0.00012,2]
[424845939,1781202638000,-500.0,0.00012,2]